bitfinex-derivatives/quotes_BTCF0:USTF0_20250710
["timestamp","ask_amount","ask_price","bid_price","bid_amount"]
[1752157270730,1.87784759,111130.0,111120.0,0.08162978]
[1752157271327,1.87784759,111130.0,111120.0,0.10624978]
[1752157271527,2.23864759,111130.0,111120.0,0.10624978]
[1752157272132,2.62067608,111130.0,111120.0,0.08262978]
[1752157272326,2.27164759,111130.0,111120.0,0.08262978]
[1752157272526,2.65367608,111130.0,111120.0,0.03489978]
[1752157272722,2.68427608,111130.0,111120.0,0.00279978]
[1752157273527,2.68427608,111130.0,111120.0,0.001]
[1752157273729,0.23924747,111120.0,111110.0,0.00179994]
[1752157273935,1.42810445,111120.0,111110.0,0.00179994]
[1752157274726,0.1964414,111110.0,111100.0,0.031]
[1752157274928,0.2203876,111100.0,111090.0,0.061]
[1752157275130,0.98205447,111100.0,111090.0,0.03]
[1752157275335,1.01505447,111100.0,111090.0,0.04583]
[1752157275534,1.01505447,111100.0,111090.0,0.07045]
[1752157275535,0.62125447,111100.0,111090.0,0.07045]
[1752157275743,0.62125447,111100.0,111090.0,0.46225]
[1752157275932,0.62125447,111100.0,111090.0,0.10145]
[1752157276133,0.21529598,111100.0,111090.0,0.6422036]
[1752157276338,0.19877598,111100.0,111090.0,0.6422036]
[1752157276836,1.32960056,111120.0,111110.0,0.04045]
[1752157277031,1.32860056,111120.0,111110.0,0.04045]
[1752157277236,1.32788056,111120.0,111110.0,0.07085]
[1752157277438,1.35181056,111120.0,111110.0,0.07085]
[1752157278037,0.2203713,111110.0,111100.0,0.04045]
[1752157278237,1.63705979,111110.0,111100.0,0.01583]
[1752157278445,1.2550313,111110.0,111100.0,0.04045]
[1752157278648,1.63705979,111110.0,111100.0,0.04045]
[1752157278839,1.63705979,111110.0,111100.0,0.2507875]
[1752157278840,1.27625979,111110.0,111100.0,0.2507875]
[1752157279038,1.24315979,111110.0,111100.0,0.6115875]
[1752157279344,0.85948107,111120.0,111110.0,0.2180712]
[1752157279538,1.24150956,111120.0,111110.0,0.26568133]
[1752157279738,1.24150956,111120.0,111110.0,0.62648133]
[1752157279939,0.59838956,111120.0,111110.0,0.65908133]
[1752157280135,1.24046956,111120.0,111110.0,0.47916013]
[1752157280645,1.26464956,111120.0,111110.0,0.47916013]
[1752157281038,1.26564956,111120.0,111110.0,0.47916013]
[1752157281448,1.26564956,111120.0,111110.0,0.65908133]
[1752157281745,1.24146956,111120.0,111110.0,0.65908133]
[1752157281935,1.24146956,111120.0,111110.0,0.47916013]
[1752157282138,1.26564956,111120.0,111110.0,0.47916013]
[1752157282830,1.26464956,111120.0,111110.0,0.47916013]
[1752157283041,0.62256956,111120.0,111110.0,0.47916013]
[1752157283242,1.26464956,111120.0,111110.0,0.47916013]
[1752157283442,0.88262107,111120.0,111110.0,0.47916013]
[1752157283742,1.26464956,111120.0,111110.0,0.47916013]
[1752157283945,1.26564956,111120.0,111110.0,0.47916013]
[1752157284340,1.29874956,111120.0,111110.0,0.47916013]
[1752157284843,0.91672107,111120.0,111110.0,0.47916013]
[1752157285042,1.29874956,111120.0,111110.0,0.08576013]
[1752157285740,0.20081107,111120.0,111110.0,0.80647332]
[1752157285945,0.02089227,111120.0,111110.0,1.21870181]
[1752157286137,0.20079727,111120.0,111110.0,1.21870181]
[1752157286735,0.20079727,111120.0,111110.0,0.84983419]
[1752157287146,0.20079727,111120.0,111110.0,1.09983419]
[1752157287546,0.62355576,111120.0,111110.0,0.11191087]
[1752157287741,0.62355576,111120.0,111110.0,0.08171087]
[1752157287948,0.65675576,111120.0,111110.0,0.08171087]
[1752157288447,0.65675576,111120.0,111110.0,0.44251087]
[1752157288644,0.27472727,111120.0,111110.0,0.44251087]
[1752157288946,0.27472727,111120.0,111110.0,0.62243207]
[1752157288947,0.24152727,111120.0,111110.0,0.62243207]
[1752157289141,0.21734727,111120.0,111110.0,0.65293207]
[1752157289742,0.21734727,111120.0,111110.0,0.6667636]
[1752157289936,0.20079727,111120.0,111110.0,0.6667636]
[1752157290248,0.84391727,111120.0,111110.0,0.65293207]
[1752157290650,0.20079727,111120.0,111110.0,0.65293207]
[1752157290844,0.84395727,111120.0,111110.0,0.65293207]
[1752157291148,0.86050727,111120.0,111110.0,0.65293207]
[1752157291551,0.21734727,111120.0,111110.0,0.65293207]
[1752157293147,0.20079727,111120.0,111110.0,0.83292406]
[1752157293749,0.20079727,111120.0,111110.0,0.65293207]
[1752157294547,0.002,111120.0,111110.0,1.67716056]
[1752157294952,0.002,111120.0,111110.0,1.85715255]
[1752157295254,0.002,111120.0,111110.0,1.97702987]
[1752157295452,0.001,111120.0,111110.0,1.97702987]
[1752157295656,0.2248725,111130.0,111120.0,0.218055]
[1752157295845,0.2248725,111130.0,111120.0,0.609255]
[1752157296155,0.62345099,111130.0,111120.0,0.65329885]
[1752157296354,0.64763099,111130.0,111120.0,0.65329885]
[1752157296652,0.68083099,111130.0,111120.0,0.67033061]
[1752157296950,0.68183099,111130.0,111120.0,0.67033061]
[1752157297145,0.2998025,111130.0,111120.0,0.67033061]
[1752157297452,0.68183099,111130.0,111120.0,0.67033061]
[1752157297652,0.62445099,111130.0,111120.0,0.67033061]
[1752157298149,0.2424225,111130.0,111120.0,0.72342503]
[1752157298847,0.2748225,111130.0,111120.0,0.72342503]
[1752157299048,0.65685099,111130.0,111120.0,0.72342503]
[1752157299750,0.2990025,111130.0,111120.0,0.69302503]
[1752157300153,0.68103099,111130.0,111120.0,0.46002561]
[1752157300350,0.71393099,111130.0,111120.0,0.63993061]
[1752157301655,0.71393099,111130.0,111120.0,0.09922561]
[1752157302052,0.71393099,111130.0,111120.0,0.06832561]
[1752157302559,0.71393099,111130.0,111120.0,0.24823061]
[1752157302859,0.71393099,111130.0,111120.0,0.60903061]
[1752157303254,0.71393099,111130.0,111120.0,0.64013061]
[1752157303653,0.71393099,111130.0,111120.0,0.46022561]
[1752157303858,0.71393099,111130.0,111120.0,0.64013061]
[1752157305058,0.3319025,111130.0,111120.0,0.64013061]
[1752157305259,0.2748225,111130.0,111120.0,0.64013061]
[1752157305464,0.2748225,111130.0,111120.0,0.69322503]
[1752157305761,0.1809002,111130.0,111120.0,0.72392503]
[1752157305957,0.1809002,111130.0,111120.0,1.10595352]
[1752157305958,0.001,111130.0,111120.0,1.10595352]
[1752157306162,0.001,111130.0,111120.0,1.09280967]
[1752157306761,0.001,111130.0,111120.0,1.11965902]
[1752157307058,0.33115621,111160.0,111150.0,0.2180065]
[1752157307257,1.02411931,111160.0,111150.0,0.5788065]
[1752157307559,1.02411931,111160.0,111150.0,0.6097065]
[1752157308263,0.38563931,111160.0,111150.0,0.6097065]
[1752157308557,1.4320078,111160.0,111150.0,0.39895]
[1752157308764,1.4658078,111160.0,111150.0,0.5788065]
[1752157308957,1.4188447,111160.0,111150.0,0.5788065]
[1752157309665,0.21805151,111160.0,111150.0,0.5788065]
[1752157309968,0.20150151,111160.0,111150.0,1.02253499]
[1752157310157,0.20150151,111160.0,111150.0,0.6405065]
[1752157310358,0.59986,111160.0,111150.0,0.6405065]
[1752157310561,0.65557,111160.0,111150.0,0.6097065]
[1752157310758,0.27354151,111160.0,111150.0,0.6097065]
[1752157310960,0.63156,111160.0,111150.0,0.6097065]
[1752157311357,0.21783151,111160.0,111150.0,0.6097065]
[1752157311557,0.20150151,111160.0,111150.0,0.6411065]
[1752157312967,0.20150151,111160.0,111150.0,0.69465958]
[1752157313567,0.21783151,111160.0,111150.0,0.69465958]
[1752157313872,0.24893151,111160.0,111150.0,0.69465958]
[1752157314168,0.24893151,111160.0,111150.0,0.54325958]
[1752157314469,0.27294151,111160.0,111150.0,0.55942209]
[1752157316383,0.27294151,111160.0,111150.0,0.58373209]
[1752157316569,0.27294151,111160.0,111150.0,0.53017901]
[1752157316872,0.65497,111160.0,111150.0,0.34866559]
[1752157317071,0.68567,111160.0,111150.0,0.34866559]
[1752157317273,1.04647,111160.0,111150.0,6.251e-05]
[1752157319469,1.02782339,111160.0,111150.0,6.251e-05]
[1752157320375,1.02782339,111160.0,111150.0,0.01384414]
[1752157322171,1.02782339,111160.0,111150.0,0.19370064]
[1752157322379,1.02782339,111160.0,111150.0,0.20980064]
[1752157322576,0.6150949,111160.0,111150.0,0.61613913]
[1752157322880,0.8937749,111160.0,111150.0,0.62511064]
[1752157323080,0.2542949,111160.0,111150.0,0.62511064]
[1752157323282,0.8939749,111160.0,111150.0,0.65801064]
[1752157323587,0.1828403,111160.0,111150.0,1.05699711]
[1752157323781,0.003,111160.0,111150.0,1.04003676]
[1752157323971,0.003,111160.0,111150.0,1.09358984]
[1752157324281,0.003,111160.0,111150.0,1.1667535]
[1752157324882,0.003,111160.0,111150.0,1.36385051]
[1752157325082,0.003,111160.0,111150.0,1.61385051]
[1752157325378,0.003,111160.0,111150.0,1.36385051]
[1752157325580,0.003,111160.0,111150.0,1.44418013]
[1752157325977,0.003,111160.0,111150.0,1.39062705]
[1752157326178,0.003,111160.0,111150.0,1.44410181]
[1752157326379,0.003,111160.0,111150.0,1.39062705]
[1752157327081,0.01909109,111190.0,111180.0,0.219518]
[1752157327377,0.002,111200.0,111190.0,0.1915418]
[1752157327573,0.002,111200.0,111190.0,0.56612106]
[1752157327772,0.002,111200.0,111190.0,1.19051355]
[1752157327982,0.1817756,111200.0,111190.0,0.80848506]
[1752157328179,0.002,111210.0,111200.0,0.1870057]
[1752157328378,0.2037533,111220.0,111210.0,0.1915095]
[1752157328576,0.2037533,111220.0,111210.0,1.64985725]
[1752157328971,0.2037533,111220.0,111210.0,1.63607799]
[1752157328972,0.02401,111220.0,111210.0,1.63607799]
[1752157329177,0.2981087,111230.0,111220.0,0.1869733]
[1752157329377,0.2981087,111230.0,111220.0,0.6137933]
[1752157330079,0.2200671,111230.0,111220.0,1.01309233]
[1752157330271,0.2037371,111230.0,111220.0,1.01309233]
[1752157330882,0.2037371,111230.0,111220.0,0.87598384]
[1752157330883,0.60209559,111230.0,111220.0,0.87598384]
[1752157331182,0.1797595,111210.0,111200.0,1.001]
[1752157331486,0.58579799,111210.0,111200.0,1.1807756]
[1752157331783,0.64709799,111210.0,111200.0,0.3608]
[1752157331978,0.1797756,111200.0,111190.0,0.72596973]
[1752157332178,0.2342856,111200.0,111190.0,1.36632973]
[1752157332688,0.2342856,111200.0,111190.0,1.3127173]
[1752157333085,0.61631409,111200.0,111190.0,0.5731786]
[1752157333388,0.2650856,111200.0,111190.0,1.2133786]
[1752157333681,0.64711409,111200.0,111190.0,1.2133786]
[1752157333875,0.2037856,111200.0,111190.0,1.77979109]
[1752157334085,0.35710313,111210.0,111200.0,0.1797756]
[1752157334273,0.35710313,111210.0,111200.0,1.00963598]
[1752157334477,0.35710313,111210.0,111200.0,0.62760749]
[1752157334784,0.04250153,111210.0,111200.0,0.62760749]
[1752157334982,0.04250153,111210.0,111200.0,1.00963598]
[1752157334983,0.01849153,111210.0,111200.0,1.00963598]
[1752157335192,0.01849153,111210.0,111200.0,1.18948398]
[1752157335390,0.20025103,111210.0,111200.0,1.18948398]
[1752157335583,0.02049153,111210.0,111200.0,1.18948398]
[1752157335883,0.20025103,111210.0,111200.0,1.26780749]
[1752157336885,0.20225103,111210.0,111200.0,1.26780749]
[1752157337186,0.22626103,111210.0,111200.0,0.62760749]
[1752157337389,0.25956103,111210.0,111200.0,1.26752749]
[1752157338080,0.22626103,111210.0,111200.0,1.26752749]
[1752157340582,0.62355952,111210.0,111200.0,0.01691189]
[1752157340789,0.2191956,111200.0,111190.0,1.00675]
[1752157340974,0.2191956,111200.0,111180.0,0.211408]
[1752157340975,0.2039418,111190.0,111180.0,0.211408]
[1752157341180,0.65037029,111190.0,111180.0,0.211408]
[1752157341384,0.2683418,111190.0,111180.0,0.572208]
[1752157342881,0.2354418,111190.0,111180.0,1.01220892]
[1752157343076,0.2039418,111190.0,111180.0,0.66218043]
[1752157343585,0.2039418,111190.0,111180.0,0.608728]
[1752157343788,0.05565,111200.0,111190.0,0.1843118]
[1752157343987,0.2354256,111200.0,111190.0,1.59632029]
[1752157344180,0.2354256,111200.0,111190.0,1.2457918]
[1752157344782,0.05565,111200.0,111190.0,1.2457918]
[1752157344987,0.2354256,111200.0,111190.0,1.2457918]
[1752157345187,0.2039256,111200.0,111190.0,1.2457918]
[1752157345781,0.02415,111200.0,111190.0,1.2530218]
[1752157346090,0.02415,111200.0,111190.0,1.63505029]
[1752157346286,0.3271348,111210.0,111200.0,0.1915256]
[1752157346490,0.3271348,111210.0,111200.0,0.5854256]
[1752157348093,0.3291348,111210.0,111200.0,0.5854256]
[1752157348482,0.3311348,111210.0,111200.0,0.5854256]
[1752157351986,0.71316329,111210.0,111200.0,1.2177056]
[1752157352183,0.71316329,111210.0,111200.0,1.22462558]
[1752157353395,0.71316329,111210.0,111200.0,0.86382558]
[1752157353693,0.71316329,111210.0,111200.0,1.22462558]
[1752157355288,0.71316329,111210.0,111200.0,1.27807801]
[1752157356094,0.71316329,111210.0,111200.0,0.46150241]
[1752157356293,1.07396329,111210.0,111200.0,0.09358733]
[1752157356494,2.09163178,111210.0,111200.0,0.05345243]
[1752157356691,2.09163178,111210.0,111200.0,0.04014279]
[1752157356888,0.1797756,111200.0,111190.0,0.13363107]
[1752157357094,0.99322409,111200.0,111190.0,0.13363107]
[1752157357395,1.37525258,111200.0,111190.0,0.05345243]
[1752157357889,1.37525258,111200.0,111180.0,0.70770507]
[1752157357890,0.2192118,111190.0,111180.0,0.70770507]
[1752157358091,1.90372029,111190.0,111180.0,0.70770507]
[1752157358596,0.2504118,111190.0,111180.0,0.73253507]
[1752157358790,0.2504118,111190.0,111180.0,0.67908264]
[1752157359300,0.63444029,111190.0,111180.0,0.73261772]
[1752157359700,0.63644029,111190.0,111180.0,0.67908264]
[1752157359900,0.63644029,111190.0,111180.0,0.73262043]
[1752157360111,0.66774029,111190.0,111180.0,0.73262043]
[1752157361199,0.66774029,111190.0,111180.0,0.51077643]
[1752157361501,0.66774029,111190.0,111180.0,0.32978443]
[1752157362501,0.66774029,111190.0,111180.0,0.24960579]
[1752157362806,0.66774029,111190.0,111180.0,0.06979779]
[1752157363000,0.66774029,111190.0,111180.0,0.24960579]
[1752157363994,0.2857118,111190.0,111180.0,0.24960579]
[1752157364195,0.66774029,111190.0,111180.0,0.196068]
[1752157367607,0.66774029,111190.0,111180.0,0.556868]
[1752157367805,0.66774029,111190.0,111180.0,0.196068]
[1752157369807,0.66774029,111190.0,111180.0,0.556868]
[1752157370105,0.66774029,111190.0,111180.0,0.196068]
[1752157371912,0.219508,111180.0,111170.0,0.68984803]
[1752157372095,0.66273649,111180.0,111170.0,0.68984803]
[1752157372301,1.92865649,111180.0,111170.0,0.68985053]
[1752157372713,1.92865649,111180.0,111170.0,0.60967189]
[1752157372906,1.92865649,111180.0,111170.0,0.05353779]
[1752157373103,1.94755687,111180.0,111170.0,0.05353779]
[1752157373306,2.30835687,111180.0,111170.0,0.05353779]
[1752157373499,0.1959041,111170.0,111160.0,0.13551556]
[1752157373698,1.02355259,111170.0,111160.0,0.05533692]
[1752157374104,1.02355259,111170.0,111160.0,0.00179913]
[1752157374800,0.66275259,111170.0,111160.0,0.18163943]
[1752157375205,0.66475259,111170.0,111160.0,0.18163943]
[1752157375611,0.66475259,111170.0,111160.0,0.00179913]
[1752157376208,0.66675259,111170.0,111160.0,0.00179913]
[1752157378414,1.02755259,111170.0,111160.0,0.00179913]
[1752157382212,1.05900831,111170.0,111160.0,0.00179913]
[1752157383921,0.2195403,111160.0,111150.0,0.0018618]
[1752157384117,2.69140082,111160.0,111150.0,0.0018618]
[1752157384322,1.94857233,111160.0,111150.0,0.0018618]
[1752157384516,2.30937233,111160.0,111150.0,0.0018618]
[1752157386216,0.05860354,111160.0,111150.0,0.96457679]
[1752157386414,0.01890354,111160.0,111150.0,1.66185679]
[1752157386614,0.01890354,111160.0,111150.0,1.84178479]
[1752157387620,0.01890354,111160.0,111150.0,1.91517194]
[1752157388323,0.01890354,111160.0,111150.0,1.99535058]
[1752157388618,0.19874384,111160.0,111150.0,1.99535058]
[1752157389319,0.01890354,111160.0,111150.0,1.99535058]
[1752157389619,0.19874384,111160.0,111150.0,1.99535058]
[1752157390016,0.01890354,111160.0,111150.0,1.99535058]
[1752157390220,0.19874384,111160.0,111150.0,1.99535058]
[1752157390419,0.01890354,111160.0,111150.0,1.99535058]
[1752157391015,0.01890354,111160.0,111150.0,1.91517194]
[1752157391214,0.33358638,111180.0,111170.0,0.1798241]
[1752157391411,0.37328638,111180.0,111170.0,0.5806541]
[1752157391614,0.37328638,111180.0,111170.0,0.6457541]
[1752157392418,0.76131487,111180.0,111170.0,0.6457541]
[1752157395328,0.33433068,111180.0,111170.0,0.6457541]
[1752157395921,0.28937588,111180.0,111170.0,0.69920858]
[1752157396722,0.28937588,111180.0,111170.0,0.6457541]
[1752157397825,0.27329588,111180.0,111170.0,1.66018259]
[1752157398024,0.006,111180.0,111170.0,1.44203707]
[1752157398224,0.2194931,111190.0,111180.0,0.219838]
[1752157398415,0.2194931,111190.0,111180.0,0.643538]
[1752157399421,0.2244931,111190.0,111180.0,0.69699248]
[1752157399623,0.2244931,111190.0,111180.0,1.32935248]
[1752157400128,0.60652159,111190.0,111180.0,1.32935248]
[1752157400528,0.60952159,111190.0,111180.0,1.32935248]
[1752157401323,0.2274931,111190.0,111180.0,1.32935248]
[1752157404528,0.0477,111190.0,111180.0,1.32935248]
[1752157405025,0.008,111190.0,111180.0,1.71138097]
[1752157405227,0.008,111190.0,111180.0,1.79154622]
[1752157405725,0.008,111190.0,111180.0,1.80067484]
[1752157406441,0.008,111190.0,111180.0,1.74722036]
[1752157406639,0.005,111190.0,111180.0,1.74722036]
[1752157406830,0.005,111190.0,111180.0,1.74922036]
[1752157407026,0.179777,111200.0,111190.0,0.1962418]
[1752157407324,0.204057,111200.0,111190.0,0.69488748]
[1752157408336,0.36280743,111210.0,111200.0,0.2198356]
[1752157408522,0.31786563,111210.0,111200.0,1.2460356]
[1752157408728,0.31786563,111210.0,111200.0,1.2779356]
[1752157409025,0.28516563,111210.0,111200.0,1.2779356]
[1752157409823,0.28616563,111210.0,111200.0,1.2779356]
[1752157410728,0.06145153,111210.0,111200.0,1.65996409]
[1752157411535,0.24121103,111210.0,111200.0,1.65996409]
[1752157411739,0.24121103,111210.0,111200.0,1.2779356]
[1752157412037,0.06145153,111210.0,111200.0,1.2779356]
[1752157412232,0.24121103,111210.0,111200.0,1.2779356]
[1752157413240,0.65423952,111210.0,111200.0,1.2460356]
[1752157413439,0.68653952,111210.0,111200.0,1.2460356]
[1752157413641,0.30451103,111210.0,111200.0,1.2460356]
[1752157413947,0.06145153,111210.0,111200.0,1.2460356]
[1752157414128,0.06145153,111210.0,111200.0,1.2784356]
[1752157414527,0.04582153,111210.0,111200.0,1.33177128]
[1752157414732,0.02154153,111210.0,111200.0,1.33177128]
[1752157414932,0.02154153,111210.0,111200.0,1.71379977]
[1752157415837,0.38973297,111230.0,111220.0,0.1961931]
[1752157416037,0.38973297,111230.0,111220.0,1.2126431]
[1752157416541,0.35923297,111230.0,111220.0,1.2456431]
[1752157416739,0.35923297,111230.0,111220.0,1.2758431]
[1752157417039,0.36223297,111230.0,111220.0,1.2758431]
[1752157417432,0.3436134,111230.0,111220.0,1.2758431]
[1752157418034,0.3436134,111230.0,111220.0,1.29304083]
[1752157418243,0.3476134,111230.0,111220.0,1.30182645]
[1752157419336,0.1867269,111230.0,111220.0,1.68385494]
[1752157419737,0.007,111230.0,111220.0,1.66262645]
[1752157420337,0.007,111230.0,111220.0,2.04465494]
[1752157420538,0.007,111230.0,111220.0,2.09799062]
[1752157420942,0.1867269,111230.0,111220.0,1.08392213]
[1752157421143,0.60866539,111230.0,111220.0,0.95860083]
[1752157421340,0.66946539,111230.0,111220.0,1.59048083]
[1752157421741,0.66246539,111230.0,111220.0,0.95860083]
[1752157422144,0.68126012,111230.0,111220.0,0.01719773]
[1752157422447,0.2196531,111220.0,111210.0,0.5570092]
[1752157422647,0.66248159,111220.0,111210.0,0.5570092]
[1752157423043,0.66248159,111220.0,111210.0,0.37725]
[1752157423240,0.2196692,111210.0,111200.0,1.2124354]
[1752157423445,0.66789769,111210.0,111200.0,0.37725]
[1752157423645,0.2858692,111210.0,111200.0,0.5570254]
[1752157423841,0.66789769,111210.0,111200.0,0.5570254]
[1752157424036,1.02869769,111210.0,111200.0,0.01645]
[1752157424242,0.2196854,111200.0,111190.0,0.39456758]
[1752157424550,0.66791389,111200.0,111190.0,0.57435918]
[1752157424943,0.2858854,111200.0,111190.0,0.57435918]
[1752157425144,0.66791389,111200.0,111190.0,0.59796918]
[1752157428153,0.66791389,111200.0,111190.0,0.39456758]
[1752157428853,0.66791389,111200.0,111190.0,0.37811758]
[1752157429247,1.29971389,111200.0,111190.0,0.37811758]
[1752157429449,1.30859725,111200.0,111190.0,0.37811758]
[1752157430251,1.29971389,111200.0,111190.0,0.57412918]
[1752157431456,1.30171389,111200.0,111190.0,0.57412918]
[1752157432048,1.30271389,111200.0,111190.0,0.39433758]
[1752157432854,1.30271389,111200.0,111190.0,0.57412918]
[1752157433356,1.30271389,111200.0,111190.0,0.59722918]
[1752157434457,1.30071389,111200.0,111190.0,0.59722918]
[1752157434757,1.29971389,111200.0,111190.0,0.59722918]
[1752157435652,1.29971389,111200.0,111190.0,0.57412918]
[1752157435852,1.29971389,111200.0,111190.0,0.39433758]
[1752157436054,1.29971389,111200.0,111190.0,0.57412918]
[1752157437160,1.29971389,111200.0,111190.0,0.39433758]
[1752157438557,0.1962378,111180.0,111170.0,0.73528623]
[1752157438757,0.60164629,111180.0,111170.0,0.75838623]
[1752157438955,0.68182829,111180.0,111170.0,0.53362093]
[1752157439155,1.31354829,111180.0,111170.0,0.61017968]
[1752157439760,1.31354829,111180.0,111170.0,0.61117968]
[1752157440251,1.31354829,111180.0,111170.0,0.05433568]
[1752157440549,1.31354829,111180.0,111170.0,0.3628]
[1752157441565,1.31354829,111180.0,111170.0,0.5426239]
[1752157441859,1.31354829,111180.0,111170.0,0.3628]
[1752157442463,1.31354829,111180.0,111170.0,0.5426239]
[1752157443963,0.9315198,111180.0,111170.0,0.5426239]
[1752157444152,0.9315198,111180.0,111170.0,0.5588439]
[1752157444364,0.9315198,111180.0,111170.0,0.6124439]
[1752157444865,0.9315198,111180.0,111170.0,0.37902]
[1752157445357,1.31354829,111180.0,111170.0,0.37902]
[1752157446360,1.67430829,111180.0,111170.0,0.002]
[1752157447766,1.85420429,111180.0,111170.0,0.002]
[1752157448266,0.2196339,111170.0,111160.0,0.00179913]
[1752157448462,1.10116995,111170.0,111160.0,0.00179913]
[1752157449367,0.71914146,111170.0,111160.0,0.19785923]
[1752157449569,1.73280995,111170.0,111160.0,0.01801913]
[1752157449770,1.73280995,111170.0,111160.0,0.00479913]
[1752157450467,1.73280995,111170.0,111160.0,0.00679913]
[1752157452069,1.73280995,111170.0,111160.0,0.02301913]
[1752157452271,1.73280995,111170.0,111160.0,0.23425923]
[1752157452470,1.37200995,111170.0,111160.0,0.05441913]
[1752157452670,0.74036995,111170.0,111160.0,0.05441913]
[1752157452871,0.66431624,111170.0,111160.0,0.03819913]
[1752157453268,1.29599624,111170.0,111160.0,0.03819913]
[1752157453667,0.99002146,111170.0,111160.0,0.03819913]
[1752157453867,1.29599624,111170.0,111160.0,0.03819913]
[1752157454066,1.65679624,111170.0,111160.0,0.00679913]
[1752157456368,0.66431624,111170.0,111160.0,0.18663923]
[1752157456567,0.2522339,111170.0,111160.0,0.22595923]
[1752157456769,1.18984868,111170.0,111160.0,0.28755923]
[1752157456965,0.52560868,111170.0,111160.0,0.28755923]
[1752157457165,0.8512739,111170.0,111160.0,0.95433401]
[1752157458177,0.8512739,111170.0,111160.0,0.64835923]
[1752157458568,1.15724868,111170.0,111160.0,0.64835923]
[1752157458874,0.8512739,111170.0,111160.0,0.64835923]
[1752157460068,1.23366919,111170.0,111160.0,0.64835923]
[1752157461365,1.23366919,111170.0,111160.0,0.44541913]
[1752157461573,1.23366919,111170.0,111160.0,0.00679913]
[1752157461874,1.29686919,111170.0,111160.0,0.00679913]
[1752157463676,1.65766919,111170.0,111160.0,0.00679913]
[1752157464967,1.73072424,111170.0,111160.0,0.00679913]
[1752157466076,0.2206901,111160.0,111150.0,0.00179929]
[1752157466274,1.42811135,111160.0,111150.0,0.00179929]
[1752157466871,0.1963763,111150.0,111140.0,0.05333568]
[1752157467067,2.28996159,111150.0,111140.0,0.05333568]
[1752157467675,1.92916159,111150.0,111140.0,0.05333568]
[1752157467979,1.92916159,111150.0,111140.0,0.24827808]
[1752157468174,1.92916159,111150.0,111140.0,0.06840568]
[1752157468369,1.92916159,111150.0,111140.0,0.07040568]
[1752157468768,2.28996159,111150.0,111140.0,0.07040568]
[1752157468967,2.28996159,111150.0,111140.0,0.06844095]
[1752157469278,2.28996159,111150.0,111140.0,0.01510527]
[1752157469479,2.3215181,111150.0,111140.0,0.01510527]
[1752157471380,2.3215181,111150.0,111140.0,0.02890123]
[1752157472682,2.3215181,111150.0,111140.0,0.01510527]
[1752157474069,1.0272581,111150.0,111140.0,0.05395527]
[1752157474275,0.25226281,111150.0,111140.0,0.2207224]
[1752157474476,0.25226281,111150.0,111140.0,0.2830224]
[1752157474673,0.25226281,111150.0,111140.0,0.6438224]
[1752157474877,0.2207063,111150.0,111140.0,0.6438224]
[1752157475184,0.1963763,111150.0,111140.0,0.64389012]
[1752157476179,0.60310159,111150.0,111140.0,0.64389012]
[1752157476586,0.60310159,111150.0,111140.0,0.10321772]
[1752157476882,0.60310159,111150.0,111140.0,0.00206772]
[1752157476883,0.63482675,111150.0,111140.0,0.00206772]
[1752157477081,1.05942675,111150.0,111140.0,0.01518492]
[1752157478187,1.05942945,111150.0,111140.0,0.01518492]
[1752157478783,1.05942945,111150.0,111140.0,0.00206772]
[1752157478978,1.05942945,111150.0,111140.0,0.01522354]
[1752157483009,0.25243416,111150.0,111140.0,0.58159012]
[1752157483201,0.21158416,111150.0,111140.0,1.02768541]
[1752157483708,0.98131077,111160.0,111150.0,0.1949262]
[1752157483907,0.38165556,111160.0,111150.0,0.2822062]
[1752157484206,0.34999077,111160.0,111150.0,0.2822062]
[1752157484707,0.35099077,111160.0,111150.0,0.2822062]
[1752157485099,0.75771606,111160.0,111150.0,0.46315]
[1752157485501,0.75771606,111160.0,111150.0,0.43195]
[1752157485697,0.1963762,111150.0,111140.0,0.39971772]
[1752157485902,0.66650149,111150.0,111140.0,0.03891772]
[1752157486101,1.29774149,111150.0,111140.0,0.07121772]
[1752157486707,1.29774149,111150.0,111140.0,0.25109012]
[1752157487008,1.29774149,111150.0,111140.0,0.07221772]
[1752157487208,1.29774149,111150.0,111140.0,0.07321772]
[1752157489303,1.29774149,111150.0,111140.0,0.03436772]
[1752157489519,1.65854149,111150.0,111140.0,0.00206772]
[1752157490295,1.65854149,111150.0,111140.0,0.0152266]
[1752157490502,0.2135824,111140.0,111130.0,0.0327]
[1752157490701,1.04053747,111140.0,111130.0,0.0327]
[1752157490903,1.04053747,111140.0,111130.0,0.05626]
[1752157491103,0.61443747,111140.0,111130.0,0.2515686]
[1752157491310,0.21418218,111140.0,111130.0,0.6423686]
[1752157491902,0.21418218,111140.0,111130.0,0.6453686]
[1752157492611,0.21418218,111140.0,111130.0,0.6473686]
[1752157493205,0.21418218,111140.0,111130.0,0.2865686]
[1752157493410,0.21418218,111140.0,111130.0,0.6473686]
[1752157494209,0.61443747,111140.0,111130.0,0.6473686]
[1752157494405,0.97523747,111140.0,111130.0,0.10668]
[1752157494606,1.00553747,111140.0,111130.0,0.02856]
[1752157494910,1.03663747,111140.0,111130.0,0.02856]
[1752157495113,1.03663747,111140.0,111130.0,0.005]
[1752157498310,1.03663747,111140.0,111130.0,1e-07]
[1752157498814,0.2135986,111130.0,111120.0,0.00179978]
[1752157499115,2.28351389,111130.0,111120.0,0.00179978]
[1752157499413,0.2136148,111120.0,111110.0,0.01860404]
[1752157499600,1.40380538,111120.0,111110.0,0.01860404]
[1752157501409,1.40380538,111120.0,111090.0,0.09450714]
[1752157501410,0.1799372,111100.0,111090.0,0.09450714]
[1752157501612,2.18525249,111100.0,111090.0,0.09450714]
[1752157501805,2.24745249,111100.0,111090.0,0.09450714]
[1752157502008,2.24745249,111100.0,111080.0,0.15911987]
[1752157502009,0.1799534,111090.0,111080.0,0.15911987]
[1752157502310,1.36774398,111090.0,111080.0,0.05539462]
[1752157502509,0.98534869,111090.0,111080.0,0.01558518]
[1752157503310,1.05665595,111090.0,111080.0,0.01558518]
[1752157504004,0.180002,111060.0,111050.0,0.0771542]
[1752157504204,2.20456159,111060.0,111050.0,0.0535942]
[1752157504402,0.1800182,111050.0,111040.0,0.02536107]
[1752157504606,0.98541349,111050.0,111040.0,0.02536107]
[1752157505415,0.98541349,111050.0,111040.0,0.00180107]
[1752157505913,0.1800344,111040.0,111030.0,0.00180123]
[1752157506119,0.1800506,111030.0,111020.0,0.05626]
[1752157506309,0.1800506,111030.0,111000.0,0.02536172]
[1752157506310,0.1800831,111010.0,111000.0,0.02536172]
[1752157506508,1.83345547,111010.0,111000.0,0.02536172]
[1752157506710,2.25665547,111010.0,111000.0,0.00180172]
[1752157507215,0.1800993,111000.0,110990.0,0.02536188]
[1752157507412,0.1800993,111000.0,110990.0,0.05806188]
[1752157507413,0.95399459,111000.0,110990.0,0.05806188]
[1752157507912,0.95399459,111000.0,110990.0,0.02536188]
[1752157507913,1.33638988,111000.0,110990.0,0.02536188]
[1752157508111,0.98599459,111000.0,110990.0,0.02536188]